bitfinex-derivatives/quotes_SOLF0:USTF0_20240927
["timestamp","ask_amount","ask_price","bid_price","bid_amount"]
[1727396769052,3.2076,155.84,155.79,1.2611]
[1727396770763,3.2076,155.84,155.8,3.2082]
[1727396771359,3.2076,155.84,155.79,4.4697]
[1727396772870,15.42,155.85,155.78,3.2088]
[1727396773667,3.2079,155.83,155.78,3.2088]
[1727396773965,3.17038717,155.84,155.78,3.2088]
[1727396774867,3.2078,155.83,155.78,3.2088]
[1727396775063,6.46676161,155.83,155.78,3.2088]
[1727396775260,3.2078,155.83,155.78,3.2088]
[1727396775461,2.6567,155.91,155.74,16.6778]
[1727396775462,15.42,155.84,155.74,16.6778]
[1727396775662,15.42,155.82,155.74,16.6778]
[1727396775868,15.42,155.84,155.76,15.42]
[1727396776063,3.208,155.82,155.79,3.2086]
[1727396776469,18.5923127,155.84,155.79,3.2086]
[1727396776660,3.2079,155.83,155.79,3.2086]
[1727396776858,15.42,155.86,155.79,3.2086]
[1727396777064,18.62963072,155.86,155.79,3.2086]
[1727396777560,18.62963072,155.86,155.78,3.2088]
[1727396777561,3.208,155.82,155.78,3.2088]
[1727396777761,18.62963072,155.86,155.76,15.42]
[1727396778256,15.42,155.84,155.76,15.42]
[1727396778467,3.2083,155.81,155.77,3.209]
[1727396778665,3.23626799,155.83,155.74,16.6778]
[1727396779063,3.2084,155.8,155.74,16.6778]
[1727396779268,3.2084,155.8,155.76,3.2091]
[1727396779965,15.42,155.8,155.74,1.2578]
[1727396780266,3.23626799,155.83,155.74,1.2578]
[1727396780469,3.2085,155.8,155.76,3.2092]
[1727396780859,3.17572579,155.81,155.74,1.2578]
[1727396781066,3.209,155.78,155.74,4.4673]
[1727396781465,18.65670486,155.8,155.74,1.2578]
[1727396781770,18.65670486,155.8,155.73,2.7054]
[1727396781771,3.209,155.78,155.73,4.5892]
[1727396782472,3.2091,155.77,155.73,4.5892]
[1727396783472,3.26912005,155.78,155.73,1.3795]
[1727396783678,15.42,155.8,155.71,83.30062281]
[1727396784171,18.60789372,155.8,155.71,83.30062281]
[1727396785171,3.2092,155.77,155.73,3.2098]
[1727396785377,18.60789372,155.8,155.71,83.30062281]
[1727396785764,18.60789372,155.8,155.72,3.2099]
[1727396786369,3.2092,155.77,155.72,3.2099]
[1727396787470,3.2092,155.77,155.73,3.2098]
[1727396787671,3.2089,155.78,155.71,83.30062281]
[1727396787870,3.2089,155.78,155.71,98.72062281]
[1727396788070,3.2089,155.78,155.74,3.2095]
[1727396788568,3.209,155.77,155.74,3.2095]
[1727396788973,3.209,155.77,155.73,3.2098]
[1727396790172,3.2092,155.76,155.73,3.2098]
[1727396790978,3.2091,155.77,155.73,3.2098]
[1727396792778,3.2092,155.76,155.73,3.2098]
[1727396792978,15.42,155.77,155.69,3.916]
[1727396793380,3.2096,155.75,155.69,3.916]
[1727396793881,3.2096,155.75,155.71,3.2101]
[1727396794576,3.2096,155.75,155.72,3.21]
[1727396794985,15.42,155.77,155.69,3.916]
[1727396795782,15.42,155.75,155.69,1.3599]
[1727396796078,15.42,155.75,155.66,15.42]
[1727396796470,3.2102,155.72,155.69,3.2105]
[1727396796671,15.42,155.75,155.66,15.42]
[1727396797479,3.21,155.72,155.69,3.2105]
[1727396797680,15.42,155.75,155.66,15.42]
[1727396797880,3.21,155.73,155.66,15.42]
[1727396798078,15.42,155.75,155.66,15.42]
[1727396798275,9.87,155.73,155.68,9.87]
[1727396798480,3.2102,155.72,155.69,3.2105]
[1727396799686,9.87,155.7,155.64,1.2694]
[1727396799885,9.87,155.67,155.64,1.2694]
[1727396800183,9.87,155.67,155.63,2.6194]
[1727396800380,15.42,155.69,155.63,5.8312]
[1727396801085,3.2112,155.67,155.64,3.2117]
[1727396801290,15.42,155.72,155.63,2.6194]
[1727396801582,3.8958,155.75,155.66,15.42]
[1727396801583,3.20368917,155.73,155.66,15.42]
[1727396801783,3.8958,155.75,155.66,15.42]
[1727396801986,3.2102,155.72,155.68,3.2107]
[1727396802986,9.56888035,155.84,155.68,15.42]
[1727396803188,15.42,155.8,155.7,15.42]
[1727396803578,15.42,155.8,155.71,2.6794]
[1727396803784,18.6909982,155.8,155.71,2.6794]
[1727396803984,18.6909982,155.8,155.71,3.9833]
[1727396804793,3.209,155.77,155.71,3.9833]
[1727396805393,3.2088,155.78,155.72,15.42]
[1727396805898,3.2709982,155.8,155.72,15.42]
[1727396806097,19.3482,155.82,155.72,15.42]
[1727396806598,19.3482,155.82,155.74,3.2094]
[1727396806799,19.3482,155.82,155.71,3.9833]
[1727396806800,15.42,155.8,155.71,3.9833]
[1727396807000,18.69647341,155.8,155.71,3.9833]
[1727396807202,3.2094,155.76,155.72,3.2099]
[1727396807401,15.42,155.78,155.71,2.6794]
[1727396807610,15.42,155.73,155.62,83.34793074]
[1727396807800,15.42,155.73,155.64,15.42]
[1727396808498,15.42,155.73,155.62,98.76793074]
[1727396808698,15.42,155.71,155.62,98.76793074]
[1727396808892,3.20559119,155.7,155.62,98.76793074]
[1727396809896,3.2109,155.68,155.62,98.76793074]
[1727396810902,3.2107,155.69,155.62,98.76793074]
[1727396811594,3.2107,155.69,155.65,3.2114]
[1727396813104,3.2109,155.68,155.65,3.2114]
[1727396814006,3.2107,155.69,155.65,3.2114]
[1727396814206,15.42,155.73,155.64,15.42]
[1727396814598,3.2103,155.71,155.67,3.2109]
[1727396815709,3.2103,155.71,155.68,3.2108]
[1727396816107,3.2101,155.72,155.68,3.2108]
[1727396817014,19.3582,155.75,155.64,15.42]
[1727396817314,15.42,155.77,155.66,15.42]
[1727396817501,15.42,155.77,155.7,3.2103]
[1727396817707,3.2099,155.73,155.7,3.2103]
[1727396820118,4.9822,155.79,155.67,1.2621]
[1727396820119,15.42,155.75,155.67,1.2621]
[1727396820321,15.42,155.73,155.64,15.42]
[1727396820916,3.2106,155.7,155.67,3.2109]
[1727396821713,3.2106,155.7,155.66,3.2112]
[1727396821918,3.2107,155.69,155.66,3.2112]
[1727396822110,18.65664675,155.71,155.63,1.383]
[1727396822315,18.65664675,155.71,155.65,3.2115]
[1727396822519,3.211,155.68,155.65,3.2115]
[1727396823914,18.65664675,155.71,155.63,1.383]
[1727396824322,3.2106,155.7,155.66,3.2111]
[1727396824816,3.2107,155.69,155.66,3.2111]
[1727396826725,3.2109,155.68,155.65,3.2114]
[1727396826919,18.65664675,155.71,155.63,1.383]
[1727396827114,3.211,155.68,155.64,3.2115]
[1727396827620,18.65664675,155.71,155.64,3.2115]
[1727396828618,3.2111,155.67,155.64,3.2115]
[1727396829019,15.42,155.69,155.63,3.2118]
[1727396829219,3.2115,155.65,155.58,16.7094]
[1727396829523,15.42,155.67,155.58,16.7094]
[1727396829723,3.2116,155.65,155.62,3.212]
[1727396831123,3.2113,155.66,155.63,3.2119]
[1727396831326,15.42,155.69,155.6,15.42]
[1727396831527,3.2112,155.67,155.63,3.2118]
[1727396831726,6.40091177,155.67,155.63,3.2118]
[1727396832227,3.2113,155.66,155.63,3.2118]
[1727396834530,3.2115,155.65,155.62,3.212]
[1727396834830,15.42,155.65,155.58,1.2894]
[1727396835233,3.2122,155.62,155.59,3.2127]
[1727396836630,3.2119,155.63,155.6,3.2125]
[1727396839322,3.2121,155.62,155.59,3.2126]
[1727396841733,3.212,155.63,155.6,3.2125]
[1727396843734,3.2121,155.63,155.56,15.42]
[1727396844838,3.2121,155.63,155.59,3.2126]
[1727396846334,15.42,155.63,155.59,3.2126]
[1727396846834,3.2121,155.62,155.59,3.2126]
[1727396847433,3.2123,155.61,155.58,3.2129]
[1727396849741,3.2122,155.62,155.59,3.2127]
[1727396850543,3.18971177,155.67,155.58,15.42]
[1727396850733,19.368,155.7,155.6,15.42]
[1727396850939,22.55768427,155.7,155.6,15.42]
[1727396851738,3.18968427,155.7,155.63,15.42]
[1727396852044,15.42,155.72,155.63,15.42]
[1727396852238,3.2105,155.7,155.63,15.42]
[1727396852440,6.48564519,155.7,155.63,15.42]
[1727396852638,3.2105,155.7,155.63,15.42]
[1727396853244,6.48339622,155.7,155.66,3.2111]
[1727396853543,3.27289622,155.7,155.6,3.91]
[1727396853734,15.42,155.7,155.6,3.91]
[1727396853941,15.42,155.68,155.6,3.91]
[1727396854136,3.2112,155.67,155.6,3.91]
[1727396854341,3.13405917,155.66,155.63,3.2117]
[1727396854543,3.2112,155.67,155.6,3.91]
[1727396855045,3.21531732,155.66,155.6,3.91]
[1727396855252,3.21531732,155.66,155.63,3.2117]
[1727396856442,3.2112,155.67,155.64,3.2116]
[1727396856640,18.6309,155.68,155.64,3.2116]
[1727396857236,3.2107,155.69,155.61,15.42]
[1727396857836,3.2107,155.69,155.65,3.2113]
[1727396858640,3.21283959,155.69,155.66,3.2112]
[1727396859043,3.2106,155.7,155.66,3.2112]
[1727396859242,3.15983834,155.69,155.67,3.2111]
[1727396859445,15.42,155.72,155.67,3.2111]
[1727396859650,18.62416666,155.72,155.67,3.2111]
[1727396860439,3.2103,155.71,155.67,3.2111]
[1727396861347,3.2105,155.7,155.67,3.2111]
[1727396861552,3.2105,155.7,155.66,3.2112]
[1727396861740,15.42,155.7,155.6,19.33]
[1727396861946,3.2108,155.69,155.65,3.2113]
[1727396862246,15.42,155.7,155.65,3.2113]
[1727396862448,15.42,155.68,155.65,3.2113]
[1727396862950,18.631,155.68,155.6,3.91]
[1727396863150,18.66186226,155.68,155.6,3.91]
[1727396863346,3.2111,155.67,155.63,3.2117]
[1727396865043,3.24186226,155.68,155.6,19.33]
[1727396865244,15.42,155.7,155.6,19.33]
[1727396865549,15.42,155.7,155.66,3.2113]
[1727396865747,18.57416919,155.7,155.66,3.2113]
[1727396866848,3.2107,155.69,155.66,3.2113]
[1727396868451,18.57416919,155.7,155.67,3.2109]
[1727396868653,3.15416919,155.7,155.67,3.2109]
[1727396868865,15.42,155.72,155.62,15.42]
[1727396869557,3.2104,155.71,155.62,15.42]
[1727396870057,18.6461235,155.72,155.62,15.42]
[1727396870252,3.2105,155.7,155.66,3.2111]
[1727396871359,3.2105,155.7,155.67,3.211]
[1727396871960,3.2103,155.71,155.68,3.2108]
[1727396872258,3.2261235,155.72,155.68,3.2108]
[1727396872463,3.2102,155.72,155.68,3.2108]
[1727396872654,3.2102,155.72,155.62,15.42]
[1727396872655,15.42,155.71,155.67,3.211]
[1727396873053,15.42,155.71,155.61,6.37830689]
[1727396873251,15.42,155.71,155.62,6.37830689]
[1727396873457,18.67407209,155.71,155.61,6.37830689]
[1727396873760,18.67407209,155.71,155.6,19.33]
[1727396873955,3.25407209,155.71,155.68,3.2107]
[1727396874155,3.9877,155.75,155.63,6.38099747]
[1727396874363,15.42,155.74,155.64,6.38099747]
[1727396874658,15.42,155.74,155.69,3.2105]
[1727396874855,3.21,155.73,155.69,3.2105]
[1727396875049,15.42,155.74,155.64,21.80051722]
[1727396875050,3.23544068,155.72,155.64,21.80051722]
[1727396875254,50.77501414,155.77,155.66,15.42]
[1727396875450,3.2094,155.76,155.67,4.0219]
[1727396875652,3.2094,155.76,155.72,3.2099]
[1727396876366,1.0,155.79,155.71,15.42]
[1727396876762,3.2089,155.78,155.71,15.42]
[1727396876967,1.0,155.79,155.71,15.42]
[1727396877264,1.0,155.79,155.69,6.37403788]
[1727396877467,3.209,155.77,155.73,3.2097]
[1727396878263,3.2093,155.76,155.73,3.2097]
[1727396878765,15.42,155.75,155.72,3.21]
[1727396879460,3.2092,155.76,155.72,3.21]
[1727396879666,15.42,155.77,155.73,3.2097]
[1727396879860,18.6292,155.77,155.73,3.2097]
[1727396880760,3.2093,155.76,155.73,3.2097]
[1727396880963,3.2093,155.76,155.72,3.21]
[1727396882270,3.2095,155.75,155.72,3.21]
[1727396884258,3.2093,155.76,155.72,3.21]
[1727396886472,15.42,155.75,155.67,4.0219]
[1727396887372,3.2101,155.72,155.69,3.2105]
[1727396887671,3.26063112,155.72,155.67,4.0219]
[1727396887866,15.42,155.75,155.67,4.0219]
[1727396888069,15.42,155.77,155.67,4.0219]
[1727396888373,3.2093,155.76,155.72,3.2099]
[1727396888984,3.2094,155.75,155.72,3.2099]
[1727396889768,3.2094,155.75,155.68,15.42]
[1727396889769,15.42,155.77,155.71,3.2101]
[1727396889975,3.2097,155.74,155.71,3.2101]
[1727396891466,3.2098,155.73,155.7,3.2104]
[1727396892577,3.2102,155.71,155.68,3.2108]
[1727396892773,15.42,155.75,155.67,2.6866]
[1727396893277,3.2099,155.73,155.69,3.2105]
[1727396893777,3.2099,155.73,155.67,2.6866]
[1727396893975,3.2101,155.72,155.69,3.2105]
[1727396894175,3.1775651,155.71,155.69,3.2105]
[1727396896176,15.42,155.72,155.65,1.306]
[1727396896376,15.42,155.76,155.61,9.06276761]
[1727396896377,15.42,155.7,155.61,9.06276761]
[1727396896577,15.42,155.7,155.61,4.0054]
[1727396896875,3.2108,155.69,155.65,3.2113]
[1727396897073,15.42,155.7,155.61,4.0054]
[1727396897074,18.64155524,155.7,155.61,4.0054]
[1727396897271,18.64155524,155.7,155.62,15.42]
[1727396897476,6.43205524,155.7,155.67,3.2109]
[1727396898179,3.22155524,155.7,155.68,3.2107]
[1727396898473,15.42,155.73,155.68,3.2107]
[1727396899479,3.2104,155.71,155.68,3.2107]
[1727396899681,3.20130095,155.7,155.67,3.211]
[1727396902492,3.20130095,155.7,155.68,3.2108]
[1727396902676,15.42,155.74,155.66,15.42]
[1727396902877,15.42,155.74,155.67,1.2768]
[1727396903281,15.42,155.74,155.67,2.5431]
[1727396903682,3.21,155.73,155.69,3.2105]
[1727396903982,15.42,155.74,155.69,3.2105]
[1727396904187,15.42,155.72,155.67,3.2111]
[1727396904388,18.57580944,155.72,155.62,17.9631]
[1727396904583,15.42,155.7,155.62,2.5431]
[1727396904783,15.42,155.7,155.64,3.2115]
[1727396905087,15.42,155.68,155.62,2.5431]
[1727396905279,15.42,155.68,155.61,1.3116]
[1727396905779,3.2114,155.66,155.63,3.2118]
[1727396908692,3.2115,155.65,155.62,3.212]
[1727396910693,3.2113,155.66,155.62,3.212]
[1727396910890,15.42,155.66,155.61,3.2122]
[1727396911396,3.2116,155.65,155.61,3.2122]
[1727396913199,18.55361039,155.68,155.59,15.42]
[1727396914400,3.13361039,155.68,155.59,15.42]
[1727396914698,15.42,155.7,155.59,15.42]
[1727396914897,3.211,155.68,155.64,3.2116]
[1727396915093,15.42,155.68,155.58,2.7156]
[1727396915298,3.2115,155.65,155.58,2.7156]
[1727396915500,15.42,155.64,155.58,2.7156]
[1727396916001,3.212,155.63,155.59,3.2127]
[1727396916397,18.69066506,155.64,155.57,1.3398]
[1727396916605,15.42,155.62,155.56,83.38162971]
[1727396917599,18.6322,155.62,155.58,3.2128]
[1727396917797,3.16465195,155.61,155.58,3.2128]
[1727396918502,3.16465195,155.61,155.59,3.2127]
[1727396922197,6.37695195,155.61,155.56,83.38162971]
[1727396922398,15.42,155.6,155.52,19.4189]
[1727396922607,15.42,155.6,155.52,3.9989]
[1727396922803,18.6327,155.6,155.56,3.2131]
[1727396923106,18.6327,155.6,155.52,3.9989]
[1727396923301,3.14928002,155.59,155.52,3.9989]
[1727396923806,3.14928002,155.59,155.52,19.4189]
[1727396924905,3.14928002,155.59,155.57,3.213]
[1727396927807,18.6327,155.6,155.57,3.213]
[1727396928205,21.89069106,155.6,155.57,3.213]
[1727396930814,6.47069106,155.6,155.57,3.213]
[1727396941523,3.25799106,155.6,155.58,3.2128]
[1727396941728,15.42,155.64,155.54,15.42]
[1727396941923,18.65742374,155.64,155.54,15.42]
[1727396942330,9.87,155.63,155.6,3.2123]
[1727396942832,13.0819,155.63,155.6,3.2123]
[1727396944124,13.0819,155.63,155.61,3.2123]
[1727396944125,9.87,155.63,155.61,3.2123]
[1727396944332,6.44922374,155.64,155.61,3.2123]
[1727396944727,3.2119,155.63,155.6,3.2124]
[1727396945533,6.44130949,155.63,155.6,3.2124]
[1727396945831,3.2119,155.63,155.6,3.2124]
[1727396946227,6.41367749,155.63,155.6,3.2124]
[1727396947021,3.20177749,155.63,155.61,3.2123]
[1727396947226,3.2117,155.64,155.61,3.2123]
[1727396947423,15.42,155.65,155.55,15.42]
[1727396947731,21.7649401,155.65,155.55,15.42]
[1727396948726,18.5533401,155.65,155.55,15.42]
[1727396949930,21.7648401,155.65,155.62,3.212]
[1727396951331,18.5533401,155.65,155.55,15.42]
[1727396951635,15.42,155.69,155.59,15.42]
[1727396951835,15.42,155.69,155.6,2.6843]
[1727396952135,15.42,155.69,155.6,4.0506]
[1727396953636,18.6307,155.69,155.66,3.2111]
[1727396954635,15.42,155.69,155.66,3.2111]
[1727396954832,1.0,155.79,155.72,28.0]
[1727396955026,16.8088,155.81,155.72,28.0]
[1727396955227,15.42,155.79,155.72,28.0]
[1727396955432,3.2091,155.77,155.72,31.21]
[1727396956238,3.2091,155.77,155.73,3.2098]
[1727396956738,3.2088,155.78,155.73,3.2098]
[1727396959738,3.2088,155.78,155.74,3.2096]
[1727396962237,15.42,155.8,155.7,16.695]
[1727396962443,4.56630202,155.81,155.72,15.42]
[1727396962741,7.77470202,155.81,155.77,3.2089]
[1727396962939,4.56630202,155.81,155.77,3.2089]
[1727396963942,3.2084,155.8,155.77,3.2089]
[1727396964245,4.56630202,155.81,155.75,3.2092]
[1727396964437,3.2086,155.79,155.75,3.2092]
[1727396964635,3.2086,155.79,155.72,15.42]
[1727396964839,15.42,155.8,155.76,3.2092]
[1727396965144,18.6285,155.8,155.76,3.2092]
[1727396965330,3.2085,155.8,155.76,3.2092]
[1727396965942,3.17750202,155.81,155.74,15.42]
[1727396966241,15.42,155.83,155.74,15.42]
[1727396966434,18.70247245,155.83,155.74,15.42]
[1727396966632,3.2084,155.81,155.77,3.209]
[1727396966832,18.70247245,155.83,155.74,15.42]
[1727396967343,3.28247245,155.83,155.76,15.42]
[1727396967543,15.42,155.86,155.76,15.42]
[1727396967744,3.2076,155.84,155.8,3.2084]
[1727396967939,3.15952722,155.86,155.78,15.42]
[1727396968142,1.3445,155.87,155.78,15.42]
[1727396968348,3.2074,155.85,155.81,3.208]
[1727396968647,6.34927085,155.85,155.81,3.208]
[1727396970047,3.14187085,155.85,155.78,16.7137]
[1727396970244,3.2072,155.86,155.78,16.7137]
[1727396970739,6.39106833,155.86,155.78,16.7137]
[1727396970946,6.39106833,155.86,155.82,3.2078]
[1727396971145,3.2074,155.85,155.82,3.2078]
[1727396971948,3.22847201,155.84,155.82,3.2078]
[1727396972847,3.2074,155.85,155.81,3.2082]
[1727396973049,3.2076,155.84,155.81,3.2082]
[1727396978246,3.23778076,155.86,155.84,3.2074]
[1727396978451,50.75294343,155.9,155.85,9.85]
[1727396978657,50.75294343,155.9,155.89,3.2065]
[1727396978955,50.75294343,155.9,155.88,9.85]
[1727396979256,50.75294343,155.9,155.88,13.0566]
[1727396980355,50.75294343,155.9,155.88,3.2066]
[1727396981257,50.75294343,155.9,155.87,3.2069]
[1727396983553,50.75294343,155.9,155.88,3.2067]
[1727396983753,50.75294343,155.9,155.85,15.39]
[1727396984359,50.75294343,155.9,155.87,3.2069]
[1727396985462,50.75294343,155.9,155.86,3.2071]
[1727396986851,3.2067,155.89,155.86,3.2071]
[1727396987354,50.75294343,155.9,155.82,15.39]
[1727396987565,3.2066,155.89,155.82,15.39]
[1727396987860,3.2066,155.89,155.85,3.2072]
[1727396990263,3.2068,155.88,155.85,3.2072]
[1727396990565,3.2106642,155.87,155.85,3.2072]
[1727396991364,3.2066,155.89,155.85,3.2072]
[1727396997862,3.2066,155.89,155.86,3.2072]
[1727397001969,3.2069,155.88,155.81,16.6583]
[1727397002272,3.17366097,155.87,155.83,9.85]
[1727397002474,9.85,155.88,155.84,3.2075]
[1727397003372,3.2071,155.87,155.84,3.2075]
[1727397003570,9.85,155.85,155.78,1.2937]
[1727397003871,50.75294343,155.9,155.78,1.2937]
[1727397004073,9.85,155.85,155.82,3.2079]
[1727397004269,50.75294343,155.9,155.82,9.85]
[1727397004470,50.75294343,155.9,155.85,9.85]
[1727397004665,60.60294343,155.9,155.85,9.85]
[1727397004869,60.60294343,155.9,155.86,13.0571]
[1727397005069,11.2108,155.94,155.89,9.85]
[1727397006567,3.2059,155.92,155.88,9.85]
[1727397007275,9.85,155.9,155.86,9.85]
[1727397007965,9.85,155.92,155.87,9.85]
[1727397008375,3.206,155.92,155.88,3.2066]
[1727397009869,3.26231251,155.95,155.87,15.39]
[1727397010074,15.39,155.99,155.89,15.39]
[1727397010577,15.39,155.99,155.91,3.206]
[1727397011172,15.39,155.97,155.9,3.2063]
[1727397011367,2.7198,156.01,155.9,3.2063]
[1727397011368,15.39,155.95,155.9,3.2063]
[1727397012870,3.2057,155.93,155.9,3.2063]
[1727397013066,3.22683718,155.92,155.9,3.2063]
[1727397013666,3.22683718,155.92,155.89,3.2065]
[1727397013870,6.43273718,155.92,155.89,3.2065]
[1727397014073,15.39,155.95,155.89,3.2065]
[1727397014272,3.2059,155.93,155.89,3.2065]
[1727397014472,3.27750705,155.92,155.89,3.2065]
[1727397016377,3.27750705,155.92,155.9,3.2063]
[1727397016773,3.2059,155.93,155.9,3.2063]
[1727397017174,6.41209766,155.93,155.9,3.2063]
[1727397017480,3.2059,155.93,155.9,3.2063]
[1727397017883,6.43518921,155.93,155.9,3.2063]
[1727397018182,3.2059,155.93,155.9,3.2063]
[1727397018384,6.41915271,155.93,155.9,3.2063]
[1727397018574,3.21325271,155.93,155.91,3.2061]
[1727397018775,15.39,155.97,155.87,15.39]
[1727397019778,3.2059,155.92,155.89,3.2064]
[1727397019974,3.17092243,155.91,155.89,3.2064]
[1727397021183,3.2058,155.93,155.89,3.2064]
[1727397021883,6.41756392,155.93,155.89,3.2064]
[1727397022079,3.2058,155.93,155.89,3.2064]
[1727397022586,6.48233791,155.93,155.89,3.2064]
[1727397023374,6.48233791,155.93,155.9,3.2063]
[1727397026483,3.27653791,155.93,155.9,3.2063]
[1727397026684,3.2056,155.94,155.9,3.2063]
[1727397026985,3.17263965,155.93,155.91,3.2061]
[1727397027186,3.2055,155.95,155.91,3.2061]
[1727397027487,15.39,155.97,155.91,3.2061]
[1727397028190,3.2055,155.95,155.91,3.2061]
[1727397029191,3.2055,155.95,155.92,3.2059]
[1727397029383,3.23805831,155.94,155.89,15.39]
[1727397029583,3.2052,155.96,155.89,15.39]
[1727397029883,3.2052,155.96,155.84,1.3292]
[1727397029884,18.1098,156.01,155.91,15.39]
[1727397030190,2.7198,156.01,155.91,15.39]
[1727397030378,9.85,156.0,155.95,9.85]
[1727397031181,9.85,156.0,155.95,13.0553]
[1727397031182,3.2046,155.99,155.95,13.0553]
[1727397031882,13.0546,155.99,155.95,3.2053]
[1727397032086,9.85,155.97,155.94,3.2055]
[1727397036689,3.27813795,156.02,155.95,9.85]
[1727397036891,50.69795081,156.03,155.96,9.85]
[1727397036892,9.85,156.01,155.96,9.85]
[1727397037394,9.85,156.01,155.98,3.2045]
[1727397037591,6.42777892,156.02,155.96,9.85]
[1727397037791,3.22387892,156.02,155.97,9.85]
[1727397037994,3.22387892,156.02,155.99,3.2043]
[1727397038291,3.22387892,156.02,155.93,1.3264]
[1727397038292,3.12738055,156.06,156.01,9.85]
[1727397038491,13.0528,156.08,156.03,13.0535]
[1727397038696,16.2728318,156.08,156.03,13.0535]
[1727397039297,1.2884,156.11,156.06,9.85]
[1727397039489,9.85,156.11,156.06,9.85]
[1727397039684,3.2026,156.09,156.05,3.2032]
[1727397039892,3.28350913,156.08,156.05,3.2032]
[1727397041096,15.37,156.09,155.99,101.09741986]
[1727397041284,15.37,156.07,155.99,85.72741986]
[1727397041999,18.52505403,156.09,155.99,101.09741986]
[1727397042195,1.2884,156.11,155.99,101.09741986]
[1727397042497,3.2029,156.07,156.02,3.2039]
[1727397042693,3.18709479,156.07,155.99,101.09741986]
[1727397042898,3.2027,156.08,156.03,3.2035]
[1727397043297,3.2422049,156.09,156.01,15.37]
[1727397043600,3.2422049,156.09,155.99,85.72741986]
[1727397043601,3.2422049,156.09,156.07,3.2028]
[1727397044094,3.2021,156.11,156.07,3.2028]
[1727397044396,3.2022,156.1,156.06,3.203]
[1727397044801,15.37,156.09,156.01,15.37]
[1727397045001,15.37,156.11,156.01,15.37]
[1727397045198,3.17920124,156.1,156.01,15.37]
[1727397045498,3.17920124,156.1,156.03,15.37]
[1727397045695,3.2022,156.11,156.03,15.37]
[1727397045893,3.2022,156.11,156.07,3.2027]
[1727397046094,15.37,156.13,156.07,3.2027]
[1727397046998,3.2022,156.11,156.07,3.2027]
[1727397047193,15.37,156.11,156.07,3.2027]
[1727397048801,3.2022,156.1,156.07,3.2027]
[1727397048997,15.37,156.11,156.05,3.2031]
[1727397049200,15.37,156.09,155.99,101.09741986]
[1727397049503,6.4412693,156.08,155.99,101.09741986]
[1727397049998,6.4412693,156.08,156.04,3.2034]
[1727397051002,6.4412693,156.08,156.05,3.2032]
[1727397051202,6.4412693,156.08,155.99,101.09741986]
[1727397052099,6.4412693,156.08,156.04,3.2033]
[1727397052900,3.2384693,156.08,156.04,3.2033]
[1727397053100,15.37,156.09,155.99,101.09741986]
[1727397053403,18.55528859,156.09,155.99,101.09741986]
[1727397053601,3.2033,156.05,156.01,3.2039]
[1727397053994,15.37,156.07,155.99,85.72741986]
[1727397054302,15.37,156.09,155.99,101.09741986]
[1727397054601,18.62223403,156.09,155.99,101.09741986]
[1727397054799,3.25223403,156.09,156.01,15.37]
[1727397054998,15.37,156.11,156.01,15.37]
[1727397055206,15.37,156.11,156.04,15.37]
[1727397055500,3.2023,156.1,156.06,3.2029]
[1727397055708,15.37,156.16,156.06,15.37]
[1727397056505,15.37,156.14,156.06,15.37]
[1727397057602,3.2017,156.13,156.09,3.2023]